[Event "Norwegian Team Championship 2019"]
[Site "Drammen"]
[Date "2019.06.01"]
[Round "4.13"]
[White "Elsness, Frode"]
[Black "Gonzalez, Francisco Silva"]
[Result "1-0"]
[ECO "A25"]
[WhiteElo "2440"]
[BlackElo "2125"]
[Annotator "ChessBase"]
[PlyCount "103"]
[EventDate "2019.05.30"]
[EventType "swiss"]
[EventCountry "NOR"]
[SourceTitle "playchess.com"]
[Source "ChessBase"]
[SourceQuality "1"]
[TimeControl "40/5400:1800"]

1. c4 {[%emt 0:00:04]} e5 {[%emt 0:00:09]} 2. g3 {[%emt 0:00:02]} Nc6 {[%emt 0:00:27]} 3. Bg2 {[%emt 0:00:05]} Bc5 {[%emt 0:00:13]} 4. Nc3 {[%emt 0:00:53]} d6 {[%emt 0:00:23]} 5. e3 {[%emt 0:01:07]} a6 {[%emt 0:00:20]} 6. Nge2 {[%emt 0:00:13]} Ba7 {[%emt 0:00:25]} 7. O-O {[%emt 0:03:08]} h5 {[%emt 0:00:39]} 8. d4 {[%emt 0:03:04]} h4 {[%emt 0:01:17]} 9. b4 {[%emt 0:01:20]} hxg3 {[%emt 0:01:31]} 10. fxg3 {[%emt 0:00:31]} Nf6 {[%emt 0:02:04]} 11. b5 {[%emt 0:08:35]} axb5 {[%emt 0:03:30]} 12. cxb5 {[%emt 0:01:14]} Ne7 {[%emt 0:11:33]} 13. Qd3 {[%emt 0:03:36]} c6 {[%emt 0:07:59]} 14. Bb2 {[%emt 0:05:08]} Be6 {[%emt 0:01:29]} 15. Ne4 {[%emt 0:09:04]} Nxe4 {[%emt 0:04:06]} 16. Bxe4 {[%emt 0:01:35]} d5 {[%emt 0:02:45]} 17. Bg2 {[%emt 0:01:15]} e4 {[%emt 0:00:09]} 18. Qb3 {[%emt 0:06:11]} Bb8 {[%emt 0:03:53]} 19. Nf4 {[%emt 0:02:33]} Bg4 {[%emt 0:02:34]} 20. Rf2 {[%emt 0:08:23]} Bd6 {[%emt 0:03:23]} 21. a4 {[%emt 0:03:49]} Qd7 {[%emt 0:03:15]} 22. bxc6 {[%emt 0:04:32]} bxc6 {[%emt 0:00:35]} 23. Ba3 {[%emt 0:01:28]} Rb8 {[%emt 0:01:48]} 24. Qc3 {[%emt 0:01:23]} Bxa3 {[%emt 0:00:10]} 25. Qxa3 {[%emt 0:00:20]} O-O {[%emt 0:00:07]} 26. a5 {[%emt 0:02:45]} Nc8 {[%emt 0:02:16]} 27. Ng6 {[%emt 0:02:14]} Re8 {[%emt 0:03:57]} 28. Ne5 {[%emt 0:00:02]} Qe6 {[%emt 0:00:19]} 29. Rxf7 {[%emt 0:03:06]} Be2 {[%emt 0:04:51]} 30. Rf2 {[%emt 0:01:05]} Bb5 {[%emt 0:00:43]} 31. Bf1 {[%emt 0:00:45]} Nd6 {[%emt 0:00:11]} 32. a6 {[%emt 0:01:46]} Ra8 {[%emt 0:02:22]} 33. Qc5 {[%emt 0:01:01]} Nc4 {[%emt 0:02:48]} 34. Nxc4 {[%emt 0:02:06]} dxc4 {[%emt 0:00:26]} 35. a7 {[%emt 0:00:22]} Qd5 {[%emt 0:01:20]} 36. Rc2 {[%emt 0:03:12]} Qxc5 37. dxc5 {[%emt 0:00:00]} Kf7 {[%emt 0:10:34]} 38. Bxc4+ {[%emt 0:00:16]} Bxc4 {[%emt 0:00:52]} 39. Rxc4 {[%emt 0:00:00]} Kf6 {[%emt 0:01:28]} 40. Ra6 {[%emt 0:01:33]} Ke5 {[%emt 0:01:01]} 41. Rca4 {[%emt 0:00:14]} Kd5 {[%emt 0:01:09]} 42. R6a5 {[%emt 0:01:08]} Re7 {[%emt 0:00:33]} 43. h4 {[%emt 0:03:51]} Ke5 {[%emt 0:01:43]} 44. Kg2 {[%emt 0:00:44]} Rb7 {[%emt 0:00:30]} 45. Kh3 {[%emt 0:00:49]} Rb3 {[%emt 0:00:21]} 46. Ra6 {[%emt 0:04:37]} Rb7 {[%emt 0:01:50]} 47. Rxc6 {[%emt 0:01:55]} Rbxa7 {[%emt 0:00:45]} 48. Rxa7 {[%emt 0:01:38]} Rxa7 {[%emt 0:00:06]} 49. Rg6 {[%emt 0:00:44]} Kd5 {[%emt 0:00:15]} 50. c6 {[%emt 0:01:28]} Rc7 {[%emt 0:01:07]} 51. Kg4 {[%emt 0:00:33]} Rf7 {[%emt 0:00:14]} 52. Rg5+ {[%emt 0:01:07]} 1-0

[Event "Norwegian Team Championship 2019"]
[Site "Drammen"]
[Date "2019.06.01"]
[Round "4.14"]
[White "Rishovd, Svein"]
[Black "Mihajlov, Sebastian"]
[Result "1/2-1/2"]
[ECO "E69"]
[WhiteElo "2113"]
[BlackElo "2371"]
[Annotator "ChessBase"]
[PlyCount "80"]
[EventDate "2019.05.30"]
[EventType "swiss"]
[EventCountry "NOR"]
[SourceTitle "playchess.com"]
[Source "ChessBase"]
[SourceQuality "1"]
[TimeControl "40/5400:1800"]

1. Nf3 {[%emt 0:00:02]} Nf6 {[%emt 0:00:03]} 2. d4 {[%emt 0:00:15]} g6 {[%emt 0:00:13]} 3. g3 {[%emt 0:00:19]} Bg7 {[%emt 0:00:05]} 4. Bg2 {[%emt 0:00:06]} d6 {[%emt 0:00:04]} 5. O-O {[%emt 0:00:46]} O-O {[%emt 0:00:05]} 6. c4 {[%emt 0:00:06]} Nbd7 {[%emt 0:00:31]} 7. Nc3 {[%emt 0:00:16]} e5 {[%emt 0:00:03]} 8. b3 {[%emt 0:00:29]} Re8 {[%emt 0:00:05]} 9. e4 {[%emt 0:00:14]} c6 {[%emt 0:00:35]} 10. h3 {[%emt 0:03:22]} a5 {[%emt 0:00:07]} 11. Be3 {[%emt 0:01:15]} exd4 {[%emt 0:00:12]} 12. Nxd4 {[%emt 0:00:23]} Nc5 {[%emt 0:00:06]} 13. f3 {[%emt 0:04:53]} Qe7 {[%emt 0:18:07]} 14. Bf2 {[%emt 0:06:43]} Ne6 {[%emt 0:11:48]} 15. Qd2 {[%emt 0:12:46]} Nh5 {[%emt 0:05:29]} 16. Nde2 {[%emt 0:05:39]} f5 {[%emt 0:17:56]} 17. exf5 {[%emt 0:09:42]} gxf5 {[%emt 0:00:01]} 18. Rad1 {[%emt 0:01:12]} Bf8 {[%emt 0:02:57]} 19. Rfe1 {[%emt 0:02:01]} Qg5 {[%emt 0:01:02]} 20. f4 {[%emt 0:14:12]} Qg6 21. Kh2 {[%emt 0:01:12]} Nc5 {[%emt 0:02:49]} 22. Nd4 {[%emt 0:05:26]} Nf6 {[%emt 0:02:16]} 23. Rxe8 {[%emt 0:02:21]} Qxe8 {[%emt 0:00:02]} 24. Re1 {[%emt 0:00:38]} Qg6 {[%emt 0:00:07]} 25. Qc2 {[%emt 0:01:14]} Bd7 {[%emt 0:00:20]} 26. Nf3 {[%emt 0:00:34]} Re8 {[%emt 0:03:24]} 27. Rxe8 {[%emt 0:01:17]} Qxe8 {[%emt 0:00:20]} 28. Bxc5 {[%emt 0:01:07]} dxc5 {[%emt 0:00:01]} 29. Ne5 {[%emt 0:01:47]} Be6 {[%emt 0:00:28]} 30. Qd3 {[%emt 0:00:34]} Nd7 {[%emt 0:00:25]} 31. Nf3 {[%emt 0:00:57]} Nf6 {[%emt 0:03:50]} 32. Ng5 {[%emt 0:03:48]} Bc8 {[%emt 0:00:20]} 33. Na4 {[%emt 0:01:24]} Qd7 {[%emt 0:06:35]} 34. Qc3 {[%emt 0:01:21]} Qd8 {[%emt 0:00:04]} 35. Nb6 {[%emt 0:00:21]} Qxb6 {[%emt 0:04:46]} 36. Qxf6 {[%emt 0:00:02]} Qc7 {[%emt 0:00:06]} 37. Ne6 {[%emt 0:00:15]} Qe7 {[%emt 0:00:12]} 38. Qxf8+ {[%emt 0:00:17]} Qxf8 {[%emt 0:00:04]} 39. Nxf8 {[%emt 0:00:02]} Kxf8 {[%emt 0:00:05]} 40. Bf1 {[%emt 0:00:06]} Ke7 {[%emt 0:00:15]} 1/2-1/2

[Event "Norwegian Team Championship 2019"]
[Site "Drammen"]
[Date "2019.06.01"]
[Round "4.15"]
[White "Mihajlov, Svetoslav"]
[Black "Nilsen, Tobias Lang"]
[Result "1-0"]
[ECO "A36"]
[WhiteElo "2161"]
[BlackElo "1986"]
[Annotator "ChessBase"]
[PlyCount "73"]
[EventDate "2019.05.30"]
[EventType "swiss"]
[EventCountry "NOR"]
[SourceTitle "playchess.com"]
[Source "ChessBase"]
[SourceQuality "1"]
[TimeControl "40/5400:1800"]

1. c4 {[%emt 0:00:03]} c5 {[%emt 0:00:34]} 2. Nc3 {[%emt 0:00:11]} Nc6 {[%emt 0:00:14]} 3. g3 {[%emt 0:00:09]} g6 {[%emt 0:00:13]} 4. Bg2 {[%emt 0:00:12]} Bg7 {[%emt 0:00:17]} 5. d3 {[%emt 0:00:56]} d6 {[%emt 0:02:02]} 6. Bd2 {[%emt 0:04:19]} Bd7 {[%emt 0:08:57]} 7. a3 {[%emt 0:03:07]} a5 {[%emt 0:03:41]} 8. e3 {[%emt 0:01:34]} Rb8 {[%emt 0:07:33]} 9. Nge2 {[%emt 0:00:33]} Ne5 {[%emt 0:02:16]} 10. Qc2 {[%emt 0:00:54]} Bf5 {[%emt 0:01:14]} 11. e4 {[%emt 0:00:41]} Bg4 {[%emt 0:00:43]} 12. Ng1 {[%emt 0:12:19]} Nc6 {[%emt 0:06:56]} 13. f3 {[%emt 0:00:06]} Nd4 {[%emt 0:01:33]} 14. Qd1 {[%emt 0:00:07]} Bd7 {[%emt 0:00:10]} 15. Nge2 {[%emt 0:00:06]} e5 {[%emt 0:04:57]} 16. O-O {[%emt 0:00:14]} Ne7 {[%emt 0:00:28]} 17. Nxd4 {[%emt 0:00:12]} cxd4 {[%emt 0:00:06]} 18. Nb5 {[%emt 0:00:09]} Bxb5 {[%emt 0:09:04]} 19. cxb5 {[%emt 0:00:02]} d5 {[%emt 0:02:28]} 20. Qa4 {[%emt 0:02:58]} b6 {[%emt 0:02:59]} 21. Bh3 {[%emt 0:01:36]} O-O {[%emt 0:01:50]} 22. Rac1 {[%emt 0:00:12]} f5 {[%emt 0:02:39]} 23. b4 {[%emt 0:00:34]} Qd7 {[%emt 0:02:13]} 24. bxa5 {[%emt 0:00:25]} bxa5 {[%emt 0:00:07]} 25. Rb1 {[%emt 0:07:36]} Ra8 {[%emt 0:02:01]} 26. Qb3 {[%emt 0:00:22]} a4 {[%emt 0:01:01]} 27. Qb4 {[%emt 0:01:28]} Rfb8 {[%emt 0:00:41]} 28. Rfc1 {[%emt 0:00:21]} Bf8 {[%emt 0:00:43]} 29. Qb2 {[%emt 0:05:42]} Nc8 {[%emt 0:04:07]} 30. exf5 {[%emt 0:00:47]} gxf5 {[%emt 0:02:11]} 31. f4 {[%emt 0:00:09]} Nd6 {[%emt 0:06:21]} 32. b6 {[%emt 0:02:55]} Nc8 {[%emt 0:03:07]} 33. b7 {[%emt 0:05:48]} Rxb7 {[%emt 0:00:05]} 34. Qxb7 {[%emt 0:00:10]} Qxb7 {[%emt 0:00:05]} 35. Rxb7 {[%emt 0:00:08]} Nd6 {[%emt 0:00:47]} 36. Rd7 {[%emt 0:01:34]} e4 {[%emt 0:01:22]} 37. Bb4 {[%emt 0:00:12]} 1-0

[Event "Norwegian Team Championship 2019"]
[Site "Drammen"]
[Date "2019.06.01"]
[Round "4.16"]
[White "Kristiansen, Rune Harald"]
[Black "Dale, Gunnar Brandshaug"]
[Result "0-1"]
[ECO "A50"]
[WhiteElo "1872"]
[BlackElo "2003"]
[Annotator "NA"]
[PlyCount "62"]
[EventDate "2019.05.30"]
[EventType "swiss"]
[EventCountry "NOR"]
[SourceTitle "playchess.com"]
[Source "ChessBase"]
[SourceQuality "1"]
[TimeControl "40/5400:1800"]

1. d4 {[%emt 0:00:05]} Nf6 {[%emt 0:00:12]} 2. c4 {[%emt 0:00:17]} e6 {[%emt 0:00:07]} 3. g4 {[%emt 0:01:10]} d5 {[%emt 0:00:36]} 4. Nf3 {[%emt 0:04:59]} dxc4 {[%emt 0:01:47]} 5. Nc3 {[%emt 0:02:37]} Bb4 {[%emt 0:02:22]} 6. e3 {[%emt 0:09:15]} b5 {[%emt 0:02:40]} 7. Bd2 {[%emt 0:04:40]} a6 {[%emt 0:01:35]} 8. Rg1 {[%emt 0:07:49]} Bb7 {[%emt 0:02:07]} 9. g5 {[%emt 0:07:54]} Bxc3 {[%emt 0:02:50]} 10. Bxc3 {[%emt 0:03:49]} Nd5 {[%emt 0:03:01]} 11. Ne5 {[%emt 0:11:44]} Nd7 {[%emt 0:02:42]} 12. Ba5 {[%emt 0:16:54]} Nxe5 {[%emt 0:06:10]} 13. dxe5 {[%emt 0:00:10]} Nb6 {[%emt 0:01:51]} 14. Qh5 {[%emt 0:00:52]} g6 {[%emt 0:05:20]} 15. Qh6 {[%emt 0:00:26]} Qe7 {[%emt 0:00:38]} 16. Rd1 {[%emt 0:03:06]} Qf8 {[%emt 0:01:31]} 17. Qh4 {[%emt 0:00:40]} h5 {[%emt 0:04:10]} 18. a3 {[%emt 0:02:47]} Qe7 {[%emt 0:04:22]} 19. Bb4 {[%emt 0:02:30]} c5 {[%emt 0:00:36]} 20. Ba5 {[%emt 0:00:10]} Nd7 {[%emt 0:03:59]} 21. Bc7 {[%emt 0:00:15]} Rc8 {[%emt 0:03:53]} 22. Bd6 {[%emt 0:00:07]} Qd8 {[%emt 0:00:13]} 23. Be2 {[%emt 0:02:51]} Qa5+ {[%emt 0:01:17]} 24. Kf1 {[%emt 0:00:14]} c3 {[%emt 0:01:02]} 25. bxc3 {[%emt 0:01:19]} Qxc3 {[%emt 0:00:41]} 26. e4 {[%emt 0:01:29]} Qxa3 {[%emt 0:06:09]} 27. Rg3 {[%emt 0:00:04]} Qa4 {[%emt 0:00:11]} 28. Re3 {[%emt 0:00:12]} c4 {[%emt 0:01:04]} 29. Qf4 {[%emt 0:00:04]} c3 {[%emt 0:01:14]} 30. Rf3 {[%emt 0:00:33]} Rh7 {[%emt 0:00:34]} 31. Bd3 {[%emt 0:00:34]} Qxd1+ {[%emt 0:00:13] Be2 Qa4} 0-1

[Event "Norwegian Team Championship 2019"]
[Site "Drammen"]
[Date "2019.06.01"]
[Round "4.17"]
[White "Madsen, Dag"]
[Black "Haug, Johannes"]
[Result "1/2-1/2"]
[ECO "E08"]
[WhiteElo "2262"]
[BlackElo "2438"]
[Annotator "ChessBase"]
[PlyCount "81"]
[EventDate "2019.05.30"]
[EventType "swiss"]
[EventCountry "NOR"]
[SourceTitle "playchess.com"]
[Source "ChessBase"]
[SourceQuality "1"]
[TimeControl "40/5400:1800"]

1. Nf3 {[%emt 0:00:06]} Nf6 {[%emt 0:00:02]} 2. c4 {[%emt 0:00:11]} e6 {[%emt 0:00:09]} 3. g3 {[%emt 0:00:12]} d5 {[%emt 0:00:03]} 4. d4 {[%emt 0:00:22]} Bb4+ {[%emt 0:00:23]} 5. Bd2 {[%emt 0:00:41]} a5 {[%emt 0:00:10]} 6. Bg2 {[%emt 0:01:18]} O-O {[%emt 0:00:05]} 7. Qc2 {[%emt 0:06:38]} Be7 {[%emt 0:00:44]} 8. O-O {[%emt 0:02:28]} c6 {[%emt 0:00:05]} 9. Bf4 {[%emt 0:05:22]} Nbd7 {[%emt 0:00:32]} 10. Na3 {[%emt 0:15:18]} Nh5 {[%emt 0:08:01]} 11. Bd2 {[%emt 0:08:01]} f5 {[%emt 0:00:44]} 12. Rac1 {[%emt 0:01:03]} Bd6 {[%emt 0:00:53]} 13. Bg5 {[%emt 0:03:04]} Qe8 {[%emt 0:17:06]} 14. e3 {[%emt 0:02:45]} h6 {[%emt 0:09:32]} 15. Bf4 {[%emt 0:00:25]} Be7 {[%emt 0:00:54]} 16. Ne5 {[%emt 0:05:28]} Nxf4 {[%emt 0:12:29]} 17. exf4 {[%emt 0:03:20]} Nxe5 {[%emt 0:01:54]} 18. fxe5 {[%emt 0:02:47]} f4 {[%emt 0:01:20]} 19. Bf3 {[%emt 0:05:42]} Bd7 {[%emt 0:01:14]} 20. c5 {[%emt 0:00:57]} h5 {[%emt 0:07:40]} 21. Kg2 {[%emt 0:01:37]} Qf7 {[%emt 0:03:21]} 22. Nb1 {[%emt 0:03:01]} g5 {[%emt 0:04:27]} 23. h3 {[%emt 0:00:41]} Be8 {[%emt 0:03:33]} 24. Qe2 {[%emt 0:02:36]} Qh7 {[%emt 0:01:01]} 25. Rc3 {[%emt 0:02:53]} Bg6 {[%emt 0:00:55]} 26. Nd2 {[%emt 0:00:11]} Kg7 {[%emt 0:00:41]} 27. a4 {[%emt 0:00:38]} fxg3 {[%emt 0:03:32]} 28. fxg3 {[%emt 0:00:28]} Rf7 {[%emt 0:01:11]} 29. g4 {[%emt 0:02:08]} h4 {[%emt 0:00:19]} 30. Qe3 {[%emt 0:01:01]} Bc2 {[%emt 0:02:26]} 31. Bd1 {[%emt 0:02:28]} Bxd1 {[%emt 0:00:35]} 32. Rxd1 {[%emt 0:00:04]} Raf8 {[%emt 0:00:02]} 33. Rf1 {[%emt 0:00:50]} Rxf1 {[%emt 0:00:36]} 34. Nxf1 {[%emt 0:00:03]} Qb1 {[%emt 0:01:19]} 35. Nd2 {[%emt 0:00:40]} Qxb2 {[%emt 0:00:09]} 36. Rb3 {[%emt 0:00:06]} Qc2 {[%emt 0:00:04]} 37. Rxb7 {[%emt 0:00:24]} Rf7 {[%emt 0:00:01]} 38. Rb3 {[%emt 0:01:54]} Qa2 {[%emt 0:01:18]} 39. Ra3 {[%emt 0:00:17]} Qc2 {[%emt 0:00:03]} 40. Rb3 {[%emt 0:00:20]} Qa2 {[%emt 0:00:20]} 41. Ra3 {[%emt 0:30:53]} 1/2-1/2

[Event "Norwegian Team Championship 2019"]
[Site "Drammen"]
[Date "2019.06.01"]
[Round "4.18"]
[White "Tryggestad, Andreas Garberg"]
[Black "Holand, Per Fredrik"]
[Result "0-1"]
[ECO "E04"]
[WhiteElo "2324"]
[BlackElo "1883"]
[Annotator "ChessBase"]
[PlyCount "72"]
[EventDate "2019.05.30"]
[EventType "swiss"]
[EventCountry "NOR"]
[SourceTitle "playchess.com"]
[Source "ChessBase"]
[SourceQuality "1"]
[TimeControl "40/5400:1800"]

1. d4 {[%emt 0:00:01]} Nf6 {[%emt 0:00:26]} 2. c4 {[%emt 0:00:09]} e6 {[%emt 0:00:10]} 3. Nf3 {[%emt 0:00:04]} d5 {[%emt 0:00:12]} 4. Nc3 {[%emt 0:00:07]} c6 {[%emt 0:00:13]} 5. g3 {[%emt 0:00:07]} dxc4 {[%emt 0:00:26]} 6. Ne5 {[%emt 0:00:59]} b5 {[%emt 0:02:05]} 7. Bg2 {[%emt 0:00:25]} a6 {[%emt 0:00:34]} 8. O-O {[%emt 0:00:21]} Bb7 {[%emt 0:01:05]} 9. b3 {[%emt 0:00:06]} b4 {[%emt 0:07:54]} 10. Na4 {[%emt 0:00:17]} c3 {[%emt 0:00:33]} 11. Bg5 {[%emt 0:04:06]} h6 {[%emt 0:12:10]} 12. Bxf6 {[%emt 0:00:39]} gxf6 {[%emt 0:01:08]} 13. Nc4 {[%emt 0:03:30]} a5 {[%emt 0:19:48]} 14. f4 {[%emt 0:08:37]} f5 {[%emt 0:03:31]} 15. e3 {[%emt 0:11:15]} Nd7 {[%emt 0:02:23]} 16. g4 {[%emt 0:00:50]} Rg8 {[%emt 0:01:16]} 17. e4 {[%emt 0:22:31]} fxe4 {[%emt 0:07:18]} 18. f5 {[%emt 0:02:47]} e5 {[%emt 0:05:54]} 19. dxe5 {[%emt 0:00:29]} Nc5 {[%emt 0:01:13]} 20. Nd6+ {[%emt 0:07:57]} Bxd6 {[%emt 0:00:08]} 21. exd6 {[%emt 0:00:01]} Nxa4 {[%emt 0:01:27]} 22. bxa4 {[%emt 0:00:02]} Qb6+ {[%emt 0:00:15]} 23. Kh1 {[%emt 0:00:16]} O-O-O {[%emt 0:00:28]} 24. Qb3 {[%emt 0:03:54]} Rd7 {[%emt 0:02:39]} 25. f6 {[%emt 0:01:39]} c5 {[%emt 0:00:52]} 26. Rae1 {[%emt 0:00:57]} Rxg4 {[%emt 0:00:59]} 27. Qc4 {[%emt 0:01:29]} Qxd6 {[%emt 0:01:49]} 28. Rf5 {[%emt 0:02:32]} Rc7 {[%emt 0:06:32]} 29. Rh5 {[%emt 0:02:19]} Qd2 {[%emt 0:00:39]} 30. Qe2 {[%emt 0:02:26]} Qxe2 {[%emt 0:01:21]} 31. Rxe2 {[%emt 0:00:01]} e3 {[%emt 0:01:21]} 32. Bxb7+ {[%emt 0:00:12]} Kxb7 {[%emt 0:00:07]} 33. Re5 {[%emt 0:00:09]} Rd7 {[%emt 0:01:28]} 34. h3 {[%emt 0:00:03]} Rc4 {[%emt 0:00:09]} 35. Re7 {[%emt 0:00:08]} Rxe7 {[%emt 0:00:06]} 36. fxe7 {[%emt 0:00:06]} Re4 {[%emt 0:00:03]} 0-1

[Event "Norwegian Team Championship 2019"]
[Site "Drammen"]
[Date "2019.06.01"]
[Round "4.19"]
[White "Markussen, Petter B"]
[Black "Nordquelle, Daniel"]
[Result "0-1"]
[ECO "A34"]
[WhiteElo "1882"]
[BlackElo "2080"]
[Annotator "NA"]
[PlyCount "44"]
[EventDate "2019.05.30"]
[EventType "swiss"]
[EventCountry "NOR"]
[SourceTitle "playchess.com"]
[Source "ChessBase"]
[SourceQuality "1"]
[TimeControl "40/5400:1800"]

1. c4 {[%emt 0:00:02]} c5 {[%emt 0:00:04]} 2. Nc3 {[%emt 0:00:04]} Nf6 {[%emt 0:00:05]} 3. g3 {[%emt 0:00:10]} d5 {[%emt 0:00:11]} 4. cxd5 {[%emt 0:00:03]} Nxd5 {[%emt 0:00:10]} 5. Bg2 {[%emt 0:00:04]} Nc7 {[%emt 0:00:10]} 6. Nf3 {[%emt 0:02:42]} Nc6 {[%emt 0:00:08]} 7. a3 {[%emt 0:00:17]} Rb8 {[%emt 0:05:35]} 8. b4 {[%emt 0:03:13]} cxb4 {[%emt 0:00:42]} 9. axb4 {[%emt 0:00:03]} b5 {[%emt 0:06:55]} 10. Ng5 {[%emt 0:26:57]} Bb7 {[%emt 0:11:41]} 11. Qb3 {[%emt 0:00:08]} e6 {[%emt 0:00:41]} 12. Nge4 {[%emt 0:00:24]} Bxb4 {[%emt 0:07:27]} 13. Rxa7 {[%emt 0:00:22]} Nxa7 {[%emt 0:04:13]} 14. Qxb4 {[%emt 0:00:03]} Qe7 {[%emt 0:03:23]} 15. Qd4 {[%emt 0:03:44]} O-O {[%emt 0:15:47]} 16. Qxa7 {[%emt 0:00:07]} f5 {[%emt 0:00:05]} 17. Nf6+ {[%emt 0:00:30]} gxf6 {[%emt 0:00:08]} 18. Bxb7 {[%emt 0:00:07]} Na8 {[%emt 0:00:10]} 19. Qa6 {[%emt 0:07:27]} Rxb7 {[%emt 0:01:24]} 20. Nxb5 {[%emt 0:00:06]} Rb6 {[%emt 0:01:54]} 21. Qa7 {[%emt 0:05:47]} Qxa7 {[%emt 0:00:15]} 22. Nxa7 {[%emt 0:00:05]} Rf7 {[%emt 0:00:51]} 0-1

[Event "Norwegian Team Championship 2019"]
[Site "Drammen"]
[Date "2019.06.01"]
[Round "4.20"]
[White "Tenold, Andreas"]
[Black "Jakobsen, Kjetil Ansgar"]
[Result "0-1"]
[ECO "A89"]
[WhiteElo "1969"]
[BlackElo "1842"]
[Annotator "NA"]
[PlyCount "46"]
[EventDate "2019.05.30"]
[EventType "swiss"]
[EventCountry "NOR"]
[SourceTitle "playchess.com"]
[Source "ChessBase"]
[SourceQuality "1"]
[TimeControl "40/5400:1800"]

1. d4 {[%emt 0:00:26]} f5 {[%emt 0:00:04]} 2. c4 {[%emt 0:00:10]} Nf6 {[%emt 0:00:15]} 3. g3 {[%emt 0:00:12]} g6 {[%emt 0:00:07]} 4. Bg2 {[%emt 0:00:06]} Bg7 {[%emt 0:00:05]} 5. Nf3 {[%emt 0:00:08]} O-O {[%emt 0:00:06]} 6. O-O {[%emt 0:00:17]} d6 {[%emt 0:00:02]} 7. Nc3 {[%emt 0:00:10]} Nc6 {[%emt 0:00:07]} 8. Qc2 {[%emt 0:05:07]} e5 {[%emt 0:00:50]} 9. dxe5 {[%emt 0:02:04]} dxe5 {[%emt 0:00:40]} 10. Rd1 {[%emt 0:00:51]} Qe7 {[%emt 0:13:37]} 11. Nd5 {[%emt 0:02:04]} Nxd5 {[%emt 0:01:30]} 12. cxd5 {[%emt 0:00:10]} Nd8 {[%emt 0:06:23]} 13. Be3 {[%emt 0:03:24]} b6 {[%emt 0:18:28]} 14. Rac1 {[%emt 0:05:39]} e4 {[%emt 0:01:38]} 15. Nd4 {[%emt 0:03:00]} Rf7 {[%emt 0:07:09]} 16. Bf4 {[%emt 0:08:09]} Bb7 {[%emt 0:05:12]} 17. Qc4 {[%emt 0:14:41]} Rc8 {[%emt 0:06:20]} 18. Ne6 {[%emt 0:10:57]} Bxd5 {[%emt 0:01:01]} 19. Qxd5 {[%emt 0:12:54]} Nxe6 {[%emt 0:01:45]} 20. b3 {[%emt 0:03:09]} g5 {[%emt 0:03:18]} 21. Be5 {[%emt 0:02:04]} Rd8 {[%emt 0:02:14]} 22. Qb5 {[%emt 0:01:09]} a6 {[%emt 0:02:01]} 23. Rxd8+ {[%emt 0:00:37]} Nxd8 {[%emt 0:00:40]} 0-1